Workbook

Sheet 지방도집계표
A1: 2019년도 도로 교통량 조사 결과 집계표(지방도 및 국가지원지방도)
A2: 노선별 | C2: 2019년 교통량 조사결과 (차종별 6시간) | AC2: 24시간 총조사결과
C3: 시간 | D3: 계 | E3: 1종 (승용) | G3: 2종 (버스) | I3: 3종 (소형트럭) | K3: 4종 (소형트럭) | M3: 5종 (중형트럭) | O3: 6종 (중형트럭) | Q3: 7종 (중형트럭) | S3: 8종 (대형트럭) | U3: 9종 (대형트럭) | W3: 10종 (대형트럭) | Y3: 11종 (대형트럭) | AA3: 12종 (대형트럭) | AC3: 시간 | AD3: 2018년 | AE3: 2019년 | AF3: 증감 | AG3: 증감율
E4: 상행 | F4: 하행 | G4: 상행 | H4: 하행 | I4: 상행 | J4: 하행 | K4: 상행 | L4: 하행 | M4: 상행 | N4: 하행 | O4: 상행 | P4: 하행 | Q4: 상행 | R4: 하행 | S4: 상행 | T4: 하행 | U4: 상행 | V4: 하행 | W4: 상행 | X4: 하행 | Y4: 상행 | Z4: 하행 | AA4: 상행 | AB4: 하행
A5: 합계 (5지점) | C5: 합계 | D5: =SUM(D8,D11,D14,D17,D20) -> 9,421 | E5: 2,865 | F5: 3,735 | G5: 143 | H5: 165 | I5: 886 | J5: 1,036 | K5: 97 | L5: 82 | M5: 123 | N5: 136 | O5: 43 | P5: 40 | Q5: 30 | R5: 36 | S5: 1 | T5: 0 | U5: 0 | V5: 0 | W5: 1 | X5: 0 | Y5: 0 | Z5: 0 | AA5: 2 | AB5: 0 | AC5: 합계 | AD5: =SUM(AD6:AD7) -> 18,220 | AE5: =SUM(AE6:AE7) -> 21,657 | AF5: =AE5-AD5 -> 3,437 | AG5: =AF5/AD5 -> 19%
C6: 주간 | D6: =SUM(D9,D12,D15,D18,D21) -> 4,670 | E6: 1,132 | F6: 2,004 | G6: 53 | H6: 107 | I6: 389 | J6: 635 | K6: 57 | L6: 53 | M6: 43 | N6: 116 | O6: 20 | P6: 28 | Q6: 10 | R6: 20 | S6: 1 | T6: 0 | U6: 0 | V6: 0 | W6: 1 | X6: 0 | Y6: 0 | Z6: 0 | AA6: 1 | AB6: 0 | AC6: 주간 (07~19) | AD6: =SUM(AD21,AD9,AD12,AD15,AD18) -> 14,767 | AE6: =SUM(AE21,AE9,AE12,AE15,AE18) -> 17,795 | AF6: =AE6-AD6 -> 3,028
C7: 야간 | D7: =SUM(D10,D13,D16,D19,D22) -> 4,751 | E7: 1,733 | F7: 1,731 | G7: 90 | H7: 58 | I7: 497 | J7: 401 | K7: 40 | L7: 29 | M7: 80 | N7: 20 | O7: 23 | P7: 12 | Q7: 20 | R7: 16 | S7: 0 | T7: 0 | U7: 0 | V7: 0 | W7: 0 | X7: 0 | Y7: 0 | Z7: 0 | AA7: 1 | AB7: 0 | AC7: 야간 (19~07) | AD7: =SUM(AD10,AD13,AD16,AD19,AD22) -> 3,453 | AE7: =SUM(AE10,AE13,AE16,AE19,AE22) -> 3,862 | AF7: 409
A8: 22-01 (나진<=>여수) 화련승강장 앞 | C8: 소계 | D8: =SUM(E8:AB8) -> 3,318 | E8: =SUM(E9:E10) -> 838 | F8: =SUM(F9:F10) -> 1,264 | G8: 47 | H8: 31 | I8: 292 | J8: 504 | K8: 67 | L8: 53 | M8: 70 | N8: 85 | O8: 10 | P8: 9 | Q8: 20 | R8: 28 | S8: 0 | T8: 0 | U8: 0 | V8: 0 | W8: 0 | X8: 0 | Y8: 0 | Z8: 0 | AA8: 0 | AB8: 0 | AC8: 소계 | AD8: =SUM(AD9:AD10) -> 4,038 | AE8: =SUM(AE9:AE10) -> 7,622 | AF8: 3,584 | AG8: =AF8/AD8 -> 89%
C9: 08~11 | D9: =SUM(E9:AB9) -> 1,786 | E9: 305 | F9: 759 | G9: 8 | H9: 19 | I9: 107 | J9: 367 | K9: 42 | L9: 39 | M9: 27 | N9: 78 | O9: 4 | P9: 5 | Q9: 8 | R9: 18 | AC9: 주간 (07~19) | AD9: 3,160 | AE9: 6,122 | AF9: 2,962
C10: 15~18 | D10: =SUM(E10:AB10) -> 1,532 | E10: 533 | F10: 505 | G10: 39 | H10: 12 | I10: 185 | J10: 137 | K10: 25 | L10: 14 | M10: 43 | N10: 7 | O10: 6 | P10: 4 | Q10: 12 | R10: 10 | AC10: 야간 (19~07) | AD10: 878 | AE10: 1,500 | AF10: 622
A11: 22-02 (소라<=>율촌) 소라면사무소 앞 | C11: 소계 | D11: =SUM(E11:AB11) -> 4,177 | E11: =SUM(E12:E13) -> 1,508 | F11: =SUM(F12:F13) -> 1,644 | G11: 60 | H11: 56 | I11: 398 | J11: 350 | K11: 17 | L11: 17 | M11: 27 | N11: 41 | O11: 12 | P11: 29 | Q11: 7 | R11: 7 | S11: 1 | T11: 0 | U11: 0 | V11: 0 | W11: 1 | X11: 0 | Y11: 0 | Z11: 0 | AA11: 2 | AC11: 소계 | AD11: =SUM(AD12:AD13) -> 9,970 | AE11: =SUM(AE12:AE13) -> 9,445 | AF11: -525 | AG11: -5%
C12: 08~11 | D12: =SUM(E12:AB12) -> 1,828 | E12: 646 | F12: 678 | G12: 29 | H12: 24 | I12: 199 | J12: 166 | K12: 9 | L12: 7 | M12: 10 | N12: 29 | O12: 6 | P12: 21 | R12: 1 | S12: 1 | W12: 1 | AA12: 1 | AC12: 주간 (07~19) | AD12: 8,117 | AE12: 7,915 | AF12: -202
C13: 15~18 | D13: 2,349 | E13: 862 | F13: 966 | G13: 31 | H13: 32 | I13: 199 | J13: 184 | K13: 8 | L13: 10 | M13: 17 | N13: 12 | O13: 6 | P13: 8 | Q13: 7 | R13: 6 | AA13: 1 | AC13: 야간 (19~07) | AD13: 1,853 | AE13: 1,530 | AF13: -323
A14: 22-03 (장수<=>여수) 원포교차로 앞 | C14: 소계 | D14: =SUM(E14:AB14) -> 1,376 | E14: =SUM(E15:E16) -> 402 | F14: =SUM(F15:F16) -> 599 | G14: 19 | H14: 59 | I14: 122 | J14: 95 | K14: 8 | L14: 12 | M14: 23 | N14: 10 | O14: 21 | P14: 2 | Q14: 3 | R14: 1 | S14: 0 | T14: 0 | U14: 0 | V14: 0 | W14: 0 | X14: 0 | Y14: 0 | Z14: 0 | AA14: 0 | AB14: 0 | AC14: 소계 | AD14: =SUM(AD15:AD16) -> 2,728 | AE14: =SUM(AE15:AE16) -> 3,412 | AF14: 684 | AG14: 25%
C15: 08~11 | D15: 792 | E15: 130 | F15: 453 | G15: 7 | H15: 53 | I15: 51 | J15: 56 | K15: 6 | L15: 7 | M15: 5 | N15: 9 | O15: 10 | P15: 2 | Q15: 2 | R15: 1 | AC15: 주간 (07~19) | AD15: 2,362 | AE15: 2,784 | AF15: 422
C16: 15~18 | D16: 584 | E16: 272 | F16: 146 | G16: 12 | H16: 6 | I16: 71 | J16: 39 | K16: 2 | L16: 5 | M16: 18 | N16: 1 | O16: 11 | Q16: 1 | AC16: 야간 (19~07) | AD16: 366 | AE16: 628 | AF16: 262
A17: 863-01 (일반77<=>서촌) 이목마을승강장 | C17: 소계 | D17: 276 | E17: =SUM(E18:E19) -> 54 | F17: =SUM(F18:F19) -> 124 | G17: 7 | H17: 8 | I17: 39 | J17: 39 | K17: 2 | L17: 0 | M17: 3 | N17: 0 | O17: 0 | P17: 0 | Q17: 0 | R17: 0 | S17: 0 | T17: 0 | U17: 0 | V17: 0 | W17: 0 | X17: 0 | Y17: 0 | Z17: 0 | AA17: 0 | AB17: 0 | AC17: 소계 | AD17: =SUM(AD18:AD19) -> 682 | AE17: =SUM(AE18:AE19) -> 588 | AF17: -94 | AG17: -14%
C18: 08~11 | D18: 125 | E18: 22 | F18: 60 | G18: 4 | H18: 4 | I18: 17 | J18: 17 | M18: 1 | AC18: 주간 (07~19) | AD18: 576 | AE18: 466 | AF18: -110
C19: 15~18 | D19: 151 | E19: 32 | F19: 64 | G19: 3 | H19: 4 | I19: 22 | J19: 22 | K19: 2 | M19: 2 | AC19: 야간 (19~07) | AD19: 106 | AE19: 122 | AF19: 16
A20: 863-04 (소라<=>서촌) 대옥마을승강장 | C20: 소계 | D20: 274 | E20: =SUM(E21:E22) -> 63 | F20: =SUM(F21:F22) -> 104 | G20: 10 | H20: 11 | I20: 35 | J20: 48 | K20: 3 | L20: 0 | M20: 0 | N20: 0 | O20: 0 | P20: 0 | Q20: 0 | R20: 0 | S20: 0 | T20: 0 | U20: 0 | V20: 0 | W20: 0 | X20: 0 | Y20: 0 | Z20: 0 | AA20: 0 | AB20: 0 | AC20: 소계 | AD20: =SUM(AD21:AD22) -> 802 | AE20: =SUM(AE21:AE22) -> 590 | AF20: -212 | AG20: -26%
C21: 08~11 | D21: 139 | E21: 29 | F21: 54 | G21: 5 | H21: 7 | I21: 15 | J21: 29 | AC21: 주간 (07~19) | AD21: 552 | AE21: 508 | AF21: -44
C22: 15~18 | D22: 135 | E22: 34 | F22: 50 | G22: 5 | H22: 4 | I22: 20 | J22: 19 | K22: 3 | AC22: 야간 (19~07) | AD22: 250 | AE22: 82 | AF22: -168
Z28: `

Sheet 시도집계표
A1: 2019년도 도로 교통량 조사 결과 집계표(시도)
A2: 노선별 | C2: 2019년 교통량 조사결과 (차종별 6시간) | AC2: 24시간 총조사결과
C3: 시간 | D3: 계 | E3: 1종 (승용) | G3: 2종 (버스) | I3: 3종 (소형트럭) | K3: 4종 (소형트럭) | M3: 5종 (중형트럭) | O3: 6종 (중형트럭) | Q3: 7종 (중형트럭) | S3: 8종 (대형트럭) | U3: 9종 (대형트럭) | W3: 10종 (대형트럭) | Y3: 11종 (대형트럭) | AA3: 12종 (대형트럭) | AC3: 시간 | AD3: 2018년 | AE3: 2019년 | AF3: 증감 | AG3: 증감율
E4: 상행 | F4: 하행 | G4: 상행 | H4: 하행 | I4: 상행 | J4: 하행 | K4: 상행 | L4: 하행 | M4: 상행 | N4: 하행 | O4: 상행 | P4: 하행 | Q4: 상행 | R4: 하행 | S4: 상행 | T4: 하행 | U4: 상행 | V4: 하행 | W4: 상행 | X4: 하행 | Y4: 상행 | Z4: 하행 | AA4: 상행 | AB4: 하행
A5: 합 계 (18지점) | C5: 합계 | D5: =SUM(D6:D7) -> 14,744 | E5: =SUM(E6:E7) -> 4,067 | F5: =SUM(F6:F7) -> 5,122 | G5: 294 | H5: 336 | I5: 1,672 | J5: 1,912 | K5: 242 | L5: 151 | M5: 155 | N5: 148 | O5: 270 | P5: 200 | Q5: 46 | R5: 33 | S5: 6 | T5: 1 | U5: 3 | V5: 1 | W5: 17 | X5: 18 | Y5: 8 | Z5: 5 | AA5: 16 | AB5: 21 | AC5: 합계 | AD5: =SUM(AD6:AD7) -> 31,640 | AE5: =SUM(AE6:AE7) -> 32,303 | AF5: =AE5-AD5 -> 663 | AG5: =AF5/AD5 -> 2%
C6: 주간 | D6: =SUM(E6:AB6) -> 7,595 | E6: =SUM(E9,E12,E15,E18,E21,E24,E27,E30,E33,E36,E39,E42,E45,E48,E51,E54,E57,E60) -> 1,956 | F6: 2,715 | G6: 140 | H6: 186 | I6: 840 | J6: 1,047 | K6: 120 | L6: 85 | M6: 86 | N6: =SUM(N9,N12,N15,N18,N21,N24,N27,N30,N33,N36,N39,N42,N45,N48,N51,N54,N57,N60) -> 90 | O6: 136 | P6: 92 | Q6: 18 | R6: 16 | S6: 4 | T6: 1 | U6: 2 | V6: 1 | W6: 9 | X6: 15 | Y6: 4 | Z6: 4 | AA6: 13 | AB6: 15 | AC6: 주간 07~19 | AD6: =SUM(AD9,AD12,AD15,AD18,AD21,AD24,AD27,AD30,AD33,AD36,AD39,AD42,AD45,AD48,AD51,AD54,AD57,AD60) -> 25,848 | AE6: =SUM(AE9,AE12,AE15,AE18,AE21,AE24,AE27,AE30,AE33,AE36,AE39,AE42,AE45,AE48,AE51,AE54,AE57,AE60) -> 27,225 | AF6: =AE6-AD6 -> 1,377 | AG6: =AF6/AD6 -> 5%
C7: 야간 | D7: =SUM(E7:AB7) -> 7,149 | E7: =SUM(E10,E13,E16,E19,E22,E25,E28,E31,E34,E37,E40,E43,E46,E49,E52,E55,E58,E61) -> 2,111 | F7: 2,407 | G7: 154 | H7: 150 | I7: 832 | J7: 865 | K7: 122 | L7: 66 | M7: 69 | N7: =SUM(N10,N13,N16,N19,N22,N25,N28,N31,N34,N37,N40,N43,N46,N49,N52,N55,N58,N61) -> 58 | O7: 134 | P7: 108 | Q7: 28 | R7: 17 | S7: 2 | T7: 0 | U7: 1 | V7: 0 | W7: 8 | X7: 3 | Y7: 4 | Z7: 1 | AA7: 3 | AB7: 6 | AC7: 야간 19~07 | AD7: =SUM(AD10,AD13,AD16,AD19,AD22,AD25,AD28,AD31,AD34,AD37,AD40,AD43,AD46,AD49,AD52,AD55,AD58,AD61) -> 5,792 | AE7: =SUM(AE10,AE13,AE16,AE19,AE22,AE25,AE28,AE31,AE34,AE37,AE40,AE43,AE46,AE49,AE52,AE55,AE58,AE61) -> 5,078 | AF7: -714 | AG7: -12%
A8: 1호 | B8: 36-02-01 (임포-죽포) 영농조합법인 앞 | C8: 소계 | D8: =SUM(E8:AB8) -> 998 | E8: =SUM(E9:E10) -> 273 | F8: 439 | G8: 22 | H8: 28 | I8: 92 | J8: 117 | K8: 7 | L8: 9 | M8: 2 | N8: =SUM(N9:N10) -> 2 | O8: 7 | P8: 0 | Q8: 0 | R8: 0 | S8: 0 | T8: 0 | U8: 0 | V8: 0 | W8: 0 | X8: 0 | Y8: 0 | Z8: 0 | AA8: 0 | AB8: 0 | AC8: 소계 | AD8: =SUM(AD9:AD10) -> 2,862 | AE8: =SUM(AE9:AE10) -> 2,295 | AF8: -567 | AG8: -20%
C9: 08~11 | D9: =SUM(E9:AB9) -> 491 | E9: 79 | F9: 276 | G9: 11 | H9: 19 | I9: 36 | J9: 57 | K9: 3 | L9: 5 | N9: 2 | O9: 3 | AC9: 주간 07~19 | AD9: 2,431 | AE9: 1,955 | AF9: -476 | AG9: -20%
C10: 15~18 | D10: =SUM(E10:AB10) -> 507 | E10: 194 | F10: 163 | G10: 11 | H10: 9 | I10: 56 | J10: 60 | K10: 4 | L10: 4 | M10: 2 | O10: 4 | AC10: 야간 19~07 | AD10: 431 | AE10: 340 | AF10: -91 | AG10: -21%
A11: 2호 | B11: 36-02-02 (신기⇔대율) 부영슈퍼 앞 | C11: 소계 | D11: =SUM(E11:AB11) -> 276 | E11: =SUM(E12:E13) -> 79 | F11: =SUM(F12:F13) -> 76 | G11: 14 | H11: 14 | I11: 42 | J11: 36 | K11: 1 | L11: 0 | M11: 12 | N11: 2 | O11: 0 | P11: 0 | Q11: 0 | R11: 0 | S11: 0 | T11: 0 | U11: 0 | V11: 0 | W11: 0 | X11: 0 | Y11: 0 | Z11: 0 | AA11: 0 | AB11: 0 | AC11: 소계 | AD11: =SUM(AD12:AD13) -> 0 | AE11: =SUM(AE12:AE13) -> 635 | AF11: 0 | AG11: 0% | AH11: 신규
C12: 08~11 | D12: =SUM(E12:AB12) -> 159 | E12: 42 | F12: 52 | G12: 8 | H12: 7 | I12: 22 | J12: 23 | L12: 0 | M12: 5 | AC12: 주간 07~19 | AE12: 543 | AF12: 0 | AG12: 0%
C13: 15~18 | D13: =SUM(E13:AB13) -> 117 | E13: 37 | F13: 24 | G13: 6 | H13: 7 | I13: 20 | J13: 13 | K13: 1 | L13: 0 | M13: 7 | N13: 2 | AC13: 야간 19~07 | AE13: 92 | AF13: 0 | AG13: 0%
A14: 4호 | B14: 36-02-03 (진두-하동) 나폴리팬션 앞 | C14: 소계 | D14: 587 | E14: =SUM(E15:E16) -> 155 | F14: =SUM(F15:F16) -> 292 | G14: 27 | H14: 29 | I14: 33 | J14: 31 | K14: 17 | L14: 3 | M14: 0 | N14: 0 | O14: 0 | P14: 0 | Q14: 0 | R14: 0 | S14: 0 | T14: 0 | U14: 0 | V14: 0 | W14: 0 | X14: 0 | Y14: 0 | Z14: 0 | AA14: 0 | AB14: 0 | AC14: 소계 | AD14: =SUM(AD15:AD16) -> 2,503 | AE14: =SUM(AE15:AE16) -> 1,761 | AF14: -742 | AG14: -30%
C15: 08~11 | D15: 312 | E15: 89 | F15: 149 | G15: 20 | H15: 14 | I15: 14 | J15: 20 | K15: 5 | L15: 1 | AC15: 주간 07~19 | AD15: 2,003 | AE15: 1,277 | AF15: -726 | AG15: -36%
C16: 15~18 | D16: 275 | E16: 66 | F16: 143 | G16: 7 | H16: 15 | I16: 19 | J16: 11 | K16: 12 | L16: 2 | AC16: 야간 19~07 | AD16: 500 | AE16: 484 | AF16: -16 | AG16: -3%
A17: 5호 | B17: 36-02-04 (송시-도실) 돌산마트 앞 | C17: 소계 | D17: 2,430 | E17: =SUM(E18:E19) -> 528 | F17: =SUM(F18:F19) -> 827 | G17: 24 | H17: 21 | I17: 300 | J17: 528 | K17: 13 | L17: 19 | M17: 25 | N17: 25 | O17: 28 | P17: 27 | Q17: 11 | R17: 8 | S17: 2 | T17: 1 | U17: 2 | V17: 1 | W17: 2 | X17: 2 | Y17: 4 | Z17: 3 | AA17: 13 | AB17: 16 | AC17: 소계 | AD17: =SUM(AD18:AD19) -> 4,498 | AE17: =SUM(AE18:AE19) -> 4,755 | AF17: 257 | AG17: 6%
C18: 08~11 | D18: 1,415 | E18: 241 | F18: 496 | G18: 12 | H18: 17 | I18: 180 | J18: 322 | K18: 10 | L18: 19 | M18: 24 | N18: 22 | O18: 12 | P18: 18 | Q18: 3 | R18: 3 | S18: 2 | T18: 1 | U18: 2 | V18: 1 | W18: 2 | X18: 2 | Y18: 1 | Z18: 3 | AA18: 10 | AB18: 12 | AC18: 주간 07~19 | AD18: 3,131 | AE18: 4,038 | AF18: 907 | AG18: 29%
C19: 15~18 | D19: 1,015 | E19: 287 | F19: 331 | G19: 12 | H19: 4 | I19: 120 | J19: 206 | K19: 3 | M19: 1 | N19: 3 | O19: 16 | P19: 9 | Q19: 8 | R19: 5 | Y19: 3 | AA19: 3 | AB19: 4 | AC19: 야간 19~07 | AD19: 1,367 | AE19: 717 | AF19: -650 | AG19: -48%
A20: 7호 | B20: 36-02-05 (둔전-굴전) 해오름팬션 앞 | C20: 소계 | D20: 615 | E20: =SUM(E21:E22) -> 179 | F20: =SUM(F21:F22) -> 223 | G20: 15 | H20: 7 | I20: 67 | J20: 57 | K20: 16 | L20: 6 | M20: 33 | N20: 1 | O20: 4 | P20: 7 | Q20: 0 | R20: 0 | S20: 0 | T20: 0 | U20: 0 | V20: 0 | W20: 0 | X20: 0 | Y20: 0 | Z20: 0 | AA20: 0 | AB20: 0 | AC20: 소계 | AD20: =SUM(AD21:AD22) -> 791 | AE20: =SUM(AE21:AE22) -> 1,391 | AF20: =AE20-AD20 -> 600 | AG20: =AF20/AD20 -> 76% | AH20: 변경
C21: 08~11 | D21: 285 | E21: 68 | F21: 118 | G21: 6 | H21: 5 | I21: 25 | J21: 29 | K21: 11 | L21: 3 | M21: 13 | N21: 1 | O21: 2 | P21: 4 | AC21: 주간 07~19 | AD21: 685 | AE21: 1,137 | AF21: 452 | AG21: 66%
C22: 15~18 | D22: 330 | E22: 111 | F22: 105 | G22: 9 | H22: 2 | I22: 42 | J22: 28 | K22: 5 | L22: 3 | M22: 20 | O22: 2 | P22: 3 | AC22: 야간 19~07 | AD22: 106 | AE22: 254 | AF22: 148 | AG22: 140%
A23: 8호 | B23: 36-02-06 (풍류-내기) 유로조경 앞 | C23: 소계 | D23: 1,036 | E23: =SUM(E24:E25) -> 329 | F23: =SUM(F24:F25) -> 361 | G23: 17 | H23: 16 | I23: 124 | J23: 127 | K23: 11 | L23: 15 | M23: 16 | N23: 9 | O23: 3 | P23: 4 | Q23: 0 | R23: 3 | S23: 1 | T23: 0 | U23: 0 | V23: 0 | W23: 0 | X23: 0 | Y23: 0 | Z23: 0 | AA23: 0 | AB23: 0 | AC23: 소계 | AD23: =SUM(AD24:AD25) -> 2,287 | AE23: =SUM(AE24:AE25) -> 2,073 | AF23: -214 | AG23: -9%
C24: 08~11 | D24: 524 | E24: 170 | F24: 172 | G24: 9 | H24: 8 | I24: 69 | J24: 62 | K24: 5 | L24: 9 | M24: 7 | N24: 6 | O24: 3 | P24: 1 | R24: 2 | S24: 1 | AC24: 주간 07~19 | AD24: 1,955 | AE24: 1,846 | AF24: -109 | AG24: -6%
C25: 15~18 | D25: 512 | E25: 159 | F25: 189 | G25: 8 | H25: 8 | I25: 55 | J25: 65 | K25: 6 | L25: 6 | M25: 9 | N25: 3 | P25: 3 | R25: 1 | AC25: 야간 19~07 | AD25: 332 | AE25: 227 | AF25: -105 | AG25: -32%
A26: 10호 | B26: 36-02-07 (달천-대포) 방앗간가든 앞 | C26: 소계 | D26: 640 | E26: =SUM(E27:E28) -> 166 | F26: =SUM(F27:F28) -> 157 | G26: 11 | H26: 6 | I26: 80 | J26: 94 | K26: 15 | L26: 5 | M26: 27 | N26: 23 | O26: 23 | P26: 30 | Q26: 0 | R26: 3 | S26: 0 | T26: 0 | U26: 0 | V26: 0 | W26: 0 | X26: 0 | Y26: 0 | Z26: 0 | AA26: 0 | AB26: 0 | AC26: 소계 | AD26: =SUM(AD27:AD28) -> 1,262 | AE26: =SUM(AE27:AE28) -> 1,294 | AF26: 32 | AG26: 3%
C27: 08~11 | D27: 320 | E27: 86 | F27: 74 | G27: 5 | H27: 3 | I27: 45 | J27: 45 | K27: 9 | L27: 2 | M27: 14 | N27: 11 | O27: 12 | P27: 13 | R27: 1 | AC27: 주간 07~19 | AD27: 1,125 | AE27: 1,174 | AF27: 49 | AG27: 4%
C28: 15~18 | D28: 320 | E28: 80 | F28: 83 | G28: 6 | H28: 3 | I28: 35 | J28: 49 | K28: 6 | L28: 3 | M28: 13 | N28: 12 | O28: 11 | P28: 17 | R28: 2 | AC28: 야간 19~07 | AD28: 137 | AE28: 120 | AF28: -17 | AG28: -12%
A29: 11호 | B29: 36-02-08 (덕양-연화) 가나건축자재 앞 | C29: 소계 | D29: 766 | E29: =SUM(E30:E31) -> 180 | F29: =SUM(F30:F31) -> 203 | G29: 9 | H29: 7 | I29: 72 | J29: 77 | K29: 0 | L29: 5 | M29: 9 | N29: 3 | O29: 116 | P29: 81 | Q29: 2 | R29: 2 | S29: 0 | T29: 0 | U29: 0 | V29: 0 | W29: 0 | X29: 0 | Y29: 0 | Z29: 0 | AA29: 0 | AB29: 0 | AC29: 소계 | AD29: =SUM(AD30:AD31) -> 1,701 | AE29: =SUM(AE30:AE31) -> 1,565 | AF29: -136 | AG29: =AE29/AD29-1 -> -8%
C30: 08~11 | D30: 394 | E30: 131 | F30: 79 | G30: 6 | H30: 3 | I30: 43 | J30: 33 | L30: 5 | M30: 6 | N30: 2 | O30: 54 | P30: 31 | R30: 1 | AC30: 주간 07~19 | AD30: 1,594 | AE30: 1,414 | AF30: -180 | AG30: =AE30/AD30-1 -> -11%
C31: 15~18 | D31: 372 | E31: 49 | F31: 124 | G31: 3 | H31: 4 | I31: 29 | J31: 44 | M31: 3 | N31: 1 | O31: 62 | P31: 50 | Q31: 2 | R31: 1 | AC31: 야간 19~07 | AD31: 107 | AE31: 151 | AF31: 44 | AG31: 41%
A32: 12호 | B32: 36-02-09 (달천-신흥) | C32: 소계 | D32: 511 | E32: =SUM(E33:E34) -> 115 | F32: =SUM(F33:F34) -> 237 | G32: 10 | H32: 10 | I32: 64 | J32: 47 | K32: 6 | L32: 0 | M32: 6 | N32: 12 | O32: 2 | P32: 2 | Q32: 0 | R32: 0 | S32: 0 | T32: 0 | U32: 0 | V32: 0 | W32: 0 | X32: 0 | Y32: 0 | Z32: 0 | AA32: 0 | AB32: 0 | AC32: 소계 | AD32: =SUM(AD33:AD34) -> 698 | AE32: =SUM(AE33:AE34) -> 1,001 | AF32: 303 | AG32: 43%
C33: 08~11 | D33: 241 | E33: 62 | F33: 100 | G33: 4 | H33: 6 | I33: 29 | J33: 28 | K33: 1 | M33: 3 | N33: 6 | O33: 1 | P33: 1 | AC33: 주간 07~19 | AD33: 540 | AE33: 874 | AF33: 334 | AG33: 62%
C34: 15~18 | D34: 270 | E34: 53 | F34: 137 | G34: 6 | H34: 4 | I34: 35 | J34: 19 | K34: 5 | M34: 3 | N34: 6 | O34: 1 | P34: 1 | AC34: 야간 19~07 | AD34: 158 | AE34: 127 | AF34: -31 | AG34: -20%
A35: 14호 | B35: 36-02-10 (신풍-애양) 구암리사무소 앞 | C35: 소계 | D35: 747 | E35: =SUM(E36:E37) -> 181 | F35: =SUM(F36:F37) -> 306 | G35: 16 | H35: 13 | I35: 64 | J35: 67 | K35: 7 | L35: 7 | M35: 0 | N35: 8 | O35: 62 | P35: 16 | Q35: 0 | R35: 0 | S35: 0 | T35: 0 | U35: 0 | V35: 0 | W35: 0 | X35: 0 | Y35: 0 | Z35: 0 | AA35: 0 | AB35: 0 | AC35: 소계 | AD35: =SUM(AD36:AD37) -> 2,104 | AE35: =SUM(AE36:AE37) -> 1,944 | AF35: -160 | AG35: -8%
C36: 08~11 | D36: 343 | E36: 90 | F36: 122 | G36: 8 | H36: 7 | I36: 37 | J36: 29 | K36: 3 | L36: 3 | N36: 7 | O36: 32 | P36: 5 | AC36: 주간 07~19 | AD36: 1,759 | AE36: 1,603 | AF36: -156 | AG36: -9%
C37: 15~18 | D37: 404 | E37: 91 | F37: 184 | G37: 8 | H37: 6 | I37: 27 | J37: 38 | K37: 4 | L37: 4 | N37: 1 | O37: 30 | P37: 11 | AC37: 야간 19~07 | AD37: 345 | AE37: 341 | AF37: -4 | AG37: -1%
A38: 15호 | B38: 36-02-11 (조화-연화) 하나라마트 앞 | C38: 소계 | D38: 1,111 | E38: =SUM(E39:E40) -> 353 | F38: =SUM(F39:F40) -> 377 | G38: 38 | H38: 30 | I38: 148 | J38: 142 | K38: 6 | L38: 10 | M38: 1 | N38: 2 | O38: 0 | P38: 2 | Q38: 0 | R38: 1 | S38: 1 | T38: 0 | U38: 0 | V38: 0 | W38: 0 | X38: 0 | Y38: 0 | Z38: 0 | AA38: 0 | AB38: 0 | AC38: 소계 | AD38: =SUM(AD39:AD40) -> 2,172 | AE38: =SUM(AE39:AE40) -> 2,263 | AF38: 91 | AG38: 4%
C39: 08~11 | D39: 609 | E39: 187 | F39: 206 | G39: 18 | H39: 14 | I39: 89 | J39: 80 | K39: 4 | L39: 7 | M39: 1 | N39: 1 | P39: 1 | S39: 1 | AC39: 주간 07~19 | AD39: 1,833 | AE39: 1,968 | AF39: 135 | AG39: 7%
C40: 15~18 | D40: 502 | E40: 166 | F40: 171 | G40: 20 | H40: 16 | I40: 59 | J40: 62 | K40: 2 | L40: 3 | N40: 1 | P40: 1 | R40: 1 | AC40: 야간 19~07 | AD40: 339 | AE40: 295 | AF40: -44 | AG40: -13%
A41: 16호 | B41: 36-02-12 (상봉-여흥) 월산리사무소 앞 | C41: 소계 | D41: 1,583 | E41: =SUM(E42:E43) -> 452 | F41: =SUM(F42:F43) -> 505 | G41: 16 | H41: 18 | I41: 166 | J41: 190 | K41: 31 | L41: 22 | M41: 19 | N41: 32 | O41: 21 | P41: 20 | Q41: 31 | R41: 12 | S41: 2 | T41: 0 | U41: 1 | V41: 0 | W41: 15 | X41: 16 | Y41: 4 | Z41: 2 | AA41: 3 | AB41: 5 | AC41: 소계 | AD41: =SUM(AD42:AD43) -> 3,573 | AE41: =SUM(AE42:AE43) -> 3,569 | AF41: -4 | AG41: -0%
C42: 08~11 | D42: 854 | E42: 258 | F42: 253 | G42: 6 | H42: 11 | I42: 88 | J42: 104 | K42: 15 | L42: 11 | M42: 10 | N42: 16 | O42: 16 | P42: 14 | Q42: 15 | R42: 7 | W42: 7 | X42: 13 | Y42: 3 | Z42: 1 | AA42: 3 | AB42: 3 | AC42: 주간 07~19 | AD42: 3,014 | AE42: 3,059 | AF42: 45 | AG42: 1%
C43: 15~18 | D43: 729 | E43: 194 | F43: 252 | G43: 10 | H43: 7 | I43: 78 | J43: 86 | K43: 16 | L43: 11 | M43: 9 | N43: 16 | O43: 5 | P43: 6 | Q43: 16 | R43: 5 | S43: 2 | U43: 1 | W43: 8 | X43: 3 | Y43: 1 | Z43: 1 | AB43: 2 | AC43: 야간 19~07 | AD43: 559 | AE43: 510 | AF43: -49 | AG43: -9%
A44: 17호 | B44: 36-02-13 (나진-창무) 화양중 앞 | C44: 소계 | D44: 401 | E44: =SUM(E45:E46) -> 91 | F44: =SUM(F45:F46) -> 97 | G44: 8 | H44: 8 | I44: 40 | J44: 53 | K44: 58 | L44: 12 | M44: 3 | N44: 29 | O44: 0 | P44: 0 | Q44: 0 | R44: 2 | S44: 0 | T44: 0 | U44: 0 | V44: 0 | W44: 0 | X44: 0 | Y44: 0 | Z44: 0 | AA44: 0 | AB44: 0 | AC44: 소계 | AD44: =SUM(AD45:AD46) -> 634 | AE44: =SUM(AE45:AE46) -> 751 | AF44: 117 | AG44: 18%
C45: 08~11 | D45: 181 | E45: 34 | F45: 50 | G45: 5 | H45: 6 | I45: 15 | J45: 20 | K45: 29 | L45: 4 | M45: 1 | N45: 16 | R45: 1 | AC45: 주간 07~19 | AD45: 529 | AE45: 667 | AF45: 138 | AG45: 26%
C46: 15~18 | D46: 220 | E46: 57 | F46: 47 | G46: 3 | H46: 2 | I46: 25 | J46: 33 | K46: 29 | L46: 8 | M46: 2 | N46: 13 | R46: 1 | AC46: 야간 19~07 | AD46: 105 | AE46: 84 | AF46: -21 | AG46: -20%
A47: 18호 | B47: 36-02-14 (용주-소호) 용주마을 입구 | C47: 소계 | D47: 1,790 | E47: =SUM(E48:E49) -> 668 | F47: =SUM(F48:F49) -> 648 | G47: 31 | H47: 32 | I47: 196 | J47: 164 | K47: 34 | L47: 17 | M47: 0 | N47: 0 | O47: 0 | P47: 0 | Q47: 0 | R47: 0 | S47: 0 | T47: 0 | U47: 0 | V47: 0 | W47: 0 | X47: 0 | Y47: 0 | Z47: 0 | AA47: 0 | AB47: 0 | AC47: 소계 | AD47: =SUM(AD48:AD49) -> 4,137 | AE47: =SUM(AE48:AE49) -> 4,433 | AF47: 296 | AG47: 7%
C48: 08~11 | D48: 840 | E48: 262 | F48: 377 | G48: 7 | H48: 20 | I48: 50 | J48: 98 | K48: 17 | L48: 9 | AC48: 주간 07~19 | AD48: 3,330 | AE48: 3,562 | AF48: 2,220 | AG48: 7%
C49: 15~18 | D49: 950 | E49: 406 | F49: 271 | G49: 24 | H49: 12 | I49: 146 | J49: 66 | K49: 17 | L49: 8 | AC49: 야간 19~07 | AD49: 807 | AE49: 871 | AF49: 2,213 | AG49: 8%
A50: 21호 | B50: 36-02-15 (세포-서촌) 산전교회 인근 | C50: 소계 | D50: 165 | E50: =SUM(E51:E52) -> 34 | F50: =SUM(F51:F52) -> 45 | G50: 6 | H50: 11 | I50: 20 | J50: 26 | K50: 11 | L50: 8 | M50: 0 | N50: 0 | O50: 0 | P50: 0 | Q50: 2 | R50: 2 | S50: 0 | T50: 0 | U50: 0 | V50: 0 | W50: 0 | X50: 0 | Y50: 0 | Z50: 0 | AA50: 0 | AB50: 0 | AC50: 소계 | AD50: =SUM(AD51:AD52) -> 0 | AE50: =SUM(AE51:AE52) -> 404 | AF50: 0 | AG50: 0% | AH50: 신규
C51: 08~11 | D51: 64 | E51: 18 | F51: 11 | G51: 3 | H51: 6 | I51: 12 | J51: 9 | K51: 3 | L51: 1 | R51: 1 | AC51: 주간 07~19 | AD51: 0 | AE51: 343 | AF51: 0 | AG51: 0%
C52: 15~18 | D52: 101 | E52: 16 | F52: 34 | G52: 3 | H52: 5 | I52: 8 | J52: 17 | K52: 8 | L52: 7 | Q52: 2 | R52: 1 | AC52: 야간 19~07 | AD52: 0 | AE52: 61 | AF52: 0 | AG52: 0%
A53: 20호 | B53: 36-02-16 (우학-송고) 우실경로당 앞 | C53: 소계 | D53: 439 | E53: =SUM(E54:E55) -> 93 | F53: =SUM(F54:F55) -> 135 | G53: 25 | H53: 75 | I53: 39 | J53: 46 | K53: 4 | L53: 7 | M53: 0 | N53: 0 | O53: 4 | P53: 11 | Q53: 0 | R53: 0 | S53: 0 | T53: 0 | U53: 0 | V53: 0 | W53: 0 | X53: 0 | Y53: 0 | Z53: 0 | AA53: 0 | AB53: 0 | AC53: 소계 | AD53: =SUM(AD54:AD55) -> 789 | AE53: =SUM(AE54:AE55) -> 805 | AF53: 16 | AG53: 2%
C54: 08~11 | D54: 210 | E54: 43 | F54: 70 | G54: 10 | H54: 35 | I54: 21 | J54: 21 | K54: 3 | L54: 2 | O54: 1 | P54: 4 | AC54: 주간 07~19 | AD54: 660 | AE54: 666 | AF54: 6 | AG54: 1%
C55: 15~18 | D55: 229 | E55: 50 | F55: 65 | G55: 15 | H55: 40 | I55: 18 | J55: 25 | K55: 1 | L55: 5 | O55: 3 | P55: 7 | AC55: 야간 19~07 | AD55: 129 | AE55: 139 | AF55: 10 | AG55: 8%
A56: 6호 | B56: 36-02-17 (호령-신흥) 개도주조장 앞 | C56: 소계 | D56: 207 | E56: =SUM(E57:E58) -> 44 | F56: =SUM(F57:F58) -> 33 | G56: 1 | H56: 4 | I56: 60 | J56: 60 | K56: 3 | L56: 2 | M56: 0 | N56: 0 | O56: 0 | P56: 0 | Q56: 0 | R56: 0 | S56: 0 | T56: 0 | U56: 0 | V56: 0 | W56: 0 | X56: 0 | Y56: 0 | Z56: 0 | AA56: 0 | AB56: 0 | AC56: 소계 | AD56: =SUM(AD57:AD58) -> 602 | AE56: =SUM(AE57:AE58) -> 559 | AF56: -43 | AG56: -7%
C57: 08~11 | D57: 125 | E57: 28 | F57: 24 | H57: 3 | I57: 29 | J57: 39 | K57: 2 | AC57: 주간 07~19 | AD57: 455 | AE57: 433 | AF57: -22 | AG57: -5%
C58: 15~18 | D58: 82 | E58: 16 | F58: 9 | G58: 1 | H58: 1 | I58: 31 | J58: 21 | K58: 1 | L58: 2 | AC58: 야간 19~07 | AD58: 147 | AE58: 126 | AF58: -21 | AG58: -14%
A59: 22호 | B59: 36-02-18 (거문-죽촌) 삼호교횟집 앞 | C59: 소계 | D59: 442 | E59: =SUM(E60:E61) -> 147 | F59: =SUM(F60:F61) -> 161 | G59: 4 | H59: 7 | I59: 65 | J59: 50 | K59: 2 | L59: 4 | M59: 2 | N59: 0 | O59: 0 | P59: 0 | Q59: 0 | R59: 0 | S59: 0 | T59: 0 | U59: 0 | V59: 0 | W59: 0 | X59: 0 | Y59: 0 | Z59: 0 | AA59: 0 | AB59: 0 | AC59: 소계 | AD59: =SUM(AD60:AD61) -> 1,027 | AE59: =SUM(AE60:AE61) -> 805 | AF59: -222 | AG59: -22%
C60: 08~11 | D60: 228 | E60: 68 | F60: 86 | G60: 2 | H60: 2 | I60: 36 | J60: 28 | K60: 0 | L60: 4 | M60: 2 | N60: 0 | O60: 0 | P60: 0 | Q60: 0 | R60: 0 | S60: 0 | T60: 0 | U60: 0 | V60: 0 | W60: 0 | X60: 0 | Y60: 0 | Z60: 0 | AA60: 0 | AB60: 0 | AC60: 주간 07~19 | AD60: 804 | AE60: 666 | AF60: -138 | AG60: -17%
C61: 15~18 | D61: 214 | E61: 79 | F61: 75 | G61: 2 | H61: 5 | I61: 29 | J61: 22 | K61: 2 | L61: 0 | M61: 0 | N61: 0 | O61: 0 | P61: 0 | Q61: 0 | R61: 0 | S61: 0 | T61: 0 | U61: 0 | V61: 0 | W61: 0 | X61: 0 | Y61: 0 | Z61: 0 | AA61: 0 | AB61: 0 | AC61: 야간 19~07 | AD61: 223 | AE61: 139 | AF61: -84 | AG61: -38%
